Cogmind - Beta 9 @@@ ROGUE MODE // 2019.10.27 @ 20:34:49 Player: muxecoid Result: Destroyed by D-53 Grenadier with Mini Grenade Launcher Performance ------------- Evolutions (0) 0 Regions Visited (2) 400 Robots Destroyed (8) 40 Value Destroyed (182) 182 Prototype IDs (0) 0 Alien Tech Used (0) 0 Bonus (0) 0 TOTAL SCORE: 622 Bonus ------- None Cogmind --------- Core Integrity 0/250 Matter 298/300 Energy 100/100 System Corruption 0% Temperature Cool (0) Location -10/Mines Parts ------- Power (1) Propulsion (2) Utility (2) Large Storage Unit Large Storage Unit Weapon (2) Inventory (16) Light Ion Engine Medium Storage Unit Large Storage Unit Hacking Suite Spread Laser Light Assault Rifle Grenade Launcher Peak State ------------ Power Light Ion Engine Propulsion Wheel Compact Wheel Utility Large Storage Unit Large Storage Unit Weapon Assault Rifle Light Assault Rifle Inventory Light Ion Engine Compact Wheel Medium Storage Unit Large Storage Unit Hacking Suite Spread Laser Assault Rifle Grenade Launcher [Rating: 8] Favorites ----------- Power Light Ion Engine Engine Light Ion Engine Propulsion Compact Wheel Wheel Compact Wheel Utility Large Storage Unit Storage Large Storage Unit Weapon Assault Rifle Ballistic Gun Assault Rifle Launcher Grenade Launcher Build | -11 -10 -10 ------- Run | Scr Mat Min Slots Evolved . | . . . Power . | . . . Propulsion . | . . . Utility . | . . . Weapon . | . . . Parts Attached 11 | 6 2 3 Power 1 | 1 . . Engine 1 | 1 . . Core . | . . . Reactor . | . . . Propulsion 3 | 2 . 1 Treads . | . . . Leg . | . . . Wheel 3 | 2 . 1 Hover . | . . . Flight . | . . . Utility 3 | 1 2 . Device . | . . . Storage 3 | 1 2 . Processor . | . . . Hackware . | . . . Protection . | . . . Artifact . | . . . Weapon 4 | 2 . 2 Energy Gun . | . . . Energy Cannon . | . . . Ballistic Gun 3 | 2 . 1 Ballistic Cannon . | . . . Launcher 1 | . . 1 Special Weapon . | . . . Impact Weapon . | . . . Slashing Weapon . | . . . Piercing Weapon . | . . . Special Melee Weapon . | . . . Unidentified Prototypes . | . . . Parts Lost 6 | . . 6 Power 1 | . . 1 Propulsion 3 | . . 3 Utility . | . . . Weapon 2 | . . 2 Highest Loss Streak 6 | . . 6 Average Slot Usage (%) 93 | . 99 85 Engine 12 | . 14 10 Wheel 25 | . 28 22 Storage 27 | . 27 28 Ballistic Gun 24 | . 28 19 Launcher 1 | . . 3 Naked Turns . | . . . Heaviest Build 40 | 10 38 40 Greatest Support 26 | 26 26 26 Greatest Overweight (x) 10 | . 1 10 Average Overweight (x) . | . . 1 Largest Inventory Capacity 16 | 6 16 16 Average Capacity 14 | 5 14 16 Most Carried 8 | 2 8 8 Average Carried 5 | 1 5 7 Final Capacity 16 | . . 16 Final Carried 7 | . . 7 Class Distribution -------------------- 100% | Mutant Dominant Class ---------------- Mutant | -10/Materials Mutant | -10/Mines Resources | -11 -10 -10 ----------- Run | Scr Mat Min Matter Collected 374 | 189 155 30 Remotely . | . . . Salvage Created 160 | . 153 7 Parts 21 | . 16 5 Haulers Intercepted . | . . . Recyclers Shooed . | . . . Parts Field Recycled . | . . . Retrieved Matter . | . . . Parts Self-Destructed . | . . . Prevented . | . . . Kills | -11 -10 -10 ------- Run | Scr Mat Min Combat Hostiles Destroyed 7 | . 4 3 Guns 4 | . 4 . AOE 3 | . . 3 Classes Destroyed 3 | . 2 1 Operator 1 | . 1 . Swarmer 3 | . . 3 Grunt 4 | . 4 . Best Kill Streak 3 | . 2 3 Combat Bots Only 3 | . 2 3 Max Kills in Single Turn 2 | . 1 2 Gunslinging . | . . . Exploded 2 | . . 2 Melee . | . . . Uniques/NPCs Destroyed . | . . . Combat | -11 -10 -10 -------- Run | Scr Mat Min Damage Taken 847 | . 44 803 Core 255 | . 10 245 Absorbed by Shields . | . . . Core Remaining (%) 100 | 100 . . Volleys Fired 20 | . 16 4 Largest 2 | . 2 2 Hottest 40 | . 40 40 Shots Fired 38 | . 32 6 Gun 36 | . 32 4 Cannon . | . . . Launcher 2 | . . 2 Special . | . . . Kinetic 36 | . 32 4 Thermal . | . . . Explosive 2 | . . 2 Electromagnetic . | . . . Robot Hit Streak 8 | . 8 1 Robot Miss Streak 4 | . 4 1 Penetration Max . | . . . Secondary Targets . | . . . Shots Hit Robots 23 | . 21 2 Core Hits 15 | . 11 4 Critical Hits . | . . . Critical Kills . | . . . Critical Parts Destroyed . | . . . Melee Attacks . | . . . Impact . | . . . Slashing . | . . . Piercing . | . . . Sneak Attacks . | . . . Combat Hostiles . | . . . Follow-up Attacks . | . . . Damage Inflicted 419 | . 229 190 Guns 257 | . 229 28 Cannons . | . . . Explosions 162 | . . 162 Melee . | . . . Ramming . | . . . Kinetic 257 | . 229 28 Thermal . | . . . Explosive 162 | . . 162 Electromagnetic . | . . . Impact . | . . . Slashing . | . . . Piercing . | . . . Highest Corruption . | . . . Average Corruption . | . . . Corruption Purged . | . . . Overload Shots . | . . . Overflow Damage 22 | . . 22 Projectiles . | . . . Explosions 22 | . . 22 Melee . | . . . Knockbacks . | . . . Impact . | . . . Kinetic . | . . . Secondary . | . . . Self-Inflicted Damage . | . . . Shots . | . . . Rammed . | . . . Targets Rammed . | . . . Kicked . | . . . Crushed . | . . . Highest Temperature 12 | . 12 . Average Temperature 7 | . 7 . Received Heat Transfer 24 | . 24 . Siege Activations . | . . . Robots Corrupted . | . . . Combat Hostiles . | . . . Parts Fried . | . . . Impact Corruptions . | . . . Robots Melted . | . . . Combat Hostiles . | . . . Parts Melted . | . . . Heat Transferred . | . . . Parts Sabotaged . | . . . Parts Stolen . | . . . Parts Stripped . | . . . Power Chain Reactions . | . . . Missiles Intercepted . | . . . Alert | -11 -10 -10 ------- Run | Scr Mat Min Peak Influence 157 | . 157 131 Average Influence 80 | . 104 69 Maximum Alert Level . | . . . Low Security (%) 100 | . . . Level 1 . | . . . Level 2 . | . . . Level 3 . | . . . Level 4 . | . . . Level 5 . | . . . High Security . | . . . Max Security . | . . . Squads Dispatched 3 | . 3 . Investigation 1 | . 1 . Extermination . | . . . Reinforcement 2 | . 2 . Assault . | . . . Garrison . | . . . Intercept . | . . . Construction Impeded . | . . . Haulers Reinforced . | . . . Stealth | -11 -10 -10 --------- Run | Scr Mat Min Distress Signals 3 | . 3 . Communications Jammed . | . . . Distress Signals . | . . . Times Spotted 17 | . 12 5 Peak Tracking Total 4 | . 4 3 Tactical Retreats . | . . . Traps | -11 -10 -10 ------- Run | Scr Mat Min Traps Triggered . | . . . Indirectly . | . . . Trap Hack Attempts . | . . . Triggered . | . . . Disarmed . | . . . Reprogrammed . | . . . Reused . | . . . Traps Extracted . | . . . Installed . | . . . Triggered . | . . . Machines | -11 -10 -10 ---------- Run | Scr Mat Min Machines Disabled . | . . . Max in Single Turn . | . . . Machines Sabotaged . | . . . Garrisons Compromised . | . . . Overloaded Fab Kills . | . . . Fab Network Shutdowns . | . . . Hacking | -11 -10 -10 --------- Run | Scr Mat Min Machines Accessed 4 | . 4 . Terminals 4 | . 4 . Fabricators . | . . . Repair Stations . | . . . Recycling Units . | . . . Scanalyzers . | . . . Garrison Access . | . . . Total Hacks 11 | . 11 . Successful 7 | . 7 . Failed 3 | . 3 . Catastrophic . | . . . Database Lockouts 1 | . 1 . Manual 8 | . 8 . Terminals 11 | . 11 . Fabricators . | . . . Repair Stations . | . . . Recycling Units . | . . . Scanalyzers . | . . . Garrison Access . | . . . Terminal Hacks 5 | . 5 . Part Schematic 1 | . 1 . Branch Access Points 1 | . 1 . Terminal Index 1 | . 1 . Transport Status 1 | . 1 . Hauler Manifests 1 | . 1 . Fabricator Hacks . | . . . Repair Station Hacks . | . . . Recycling Unit Hacks . | . . . Scanalyzer . | . . . Garrison Access Hacks . | . . . Unauthorized Hacks 4 | . 4 . Terminals 2 | . 2 . Botnet 2 | . 2 . Fabricators . | . . . Repair Stations . | . . . Recycling Units . | . . . Scanalyzers . | . . . Garrison Access . | . . . Data Cores Recovered . | . . . Used . | . . . Hacking Detections 4 | . 4 . Full Trace Events . | . . . Feedback Events . | . . . Feedback Blocked . | . . . Robot Schematics Acquired . | . . . Robots Built . | . . . Matter . | . . . Time . | . . . Total Robot Build Rating . | . . . Part Schematics Acquired 1 | . 1 . Parts Built . | . . . Matter . | . . . Time . | . . . Total Part Build Rating . | . . . Parts Repaired . | . . . Time . | . . . Parts Recycled . | . . . Recycled Matter . | . . . Retrieved Matter . | . . . Retrieved Components . | . . . Parts Scanalyzed . | . . . Part Schematics Acquired . | . . . Parts Damaged . | . . . Bothacking | -11 -10 -10 ------------ Run | Scr Mat Min Used RIF Installer . | . . . Robots Hacked . | . . . Non-combat . | . . . Combat . | . . . Robot Hacks Applied . | . . . Relay Couplers Released . | . . . Robots Rewired . | . . . Allies Hacked . | . . . Hacks Repelled . | . . . Allies | -11 -10 -10 -------- Run | Scr Mat Min Total Allies 3 | . . 3 Largest Group 3 | . . 3 Highest-Rated Group 40 | . . 40 Highest-Rated Ally 16 | . . 16 Total Orders . | . . . Ally Attacks 1 | . . 1 Total Damage 15 | . . 15 Kills . | . . . Allies Corrupted . | . . . Allies Melted . | . . . Intel | -11 -10 -10 ------- Run | Scr Mat Min Robot Analysis Total . | . . . Derelict Logs Recovered 1 | . . 1 Drone Launches . | . . . Drone Recoveries . | . . . Exploration | -11 -10 -10 ------------- Run | Scr Mat Min Turns Passed 493 | 52 261 180 Spaces Moved 388 | 47 210 131 Core 11 | 5 . 6 Treads . | . . . Legs . | . . . Wheels 377 | 42 210 125 Hover . | . . . Flight . | . . . Fastest Speed 50 | 50 90 100 Average Speed 104 | 87 97 120 Slowest Speed 550 | 100 100 550 Overloaded Moves . | . . . Propulsion Burnouts . | . . . Robots Hopped . | . . . Cave-ins Triggered . | . . . Exploration Rate (%) 21 | 3 36 26 Regions Visited 2 Branch Regions 1 Pre-discovered Areas . | . . . Known Exits Taken 1 | . 1 . Unknown Exits Taken 1 | 1 . . Scrap Searched 1 | . . 1 Spaces Dug 9 | . . 9 Terrain Destroyed 15 | . . 15 Melee . | . . . Projectile . | . . . AOE 15 | . . 15 Actions | -11 -10 -10 --------- Run | Scr Mat Min Total 436 | 54 236 146 Wait 10 | . 2 8 Move 386 | 46 209 131 Hop . | . . . Pick Up 8 | 2 6 . Fast Attach 7 | 6 1 . Attach 1 | . . 1 Detach . | . . . Swap 3 | . 1 2 Drop 1 | . 1 . Fire 20 | . 16 4 Melee . | . . . Ram . | . . . Kick . | . . . Crush . | . . . Escape Stasis . | . . . Rewire . | . . . Trap . | . . . Miscellaneous . | . . . Route ------- -11/Scrapyard -10/Materials (discovered 3 exits: [*Mat] / *Min x2) -10/Mines (discovered 1 exit: [*Exi]) History --------- Turn | Location | Event 10 | -11/Scrapyard | Discovered new exit (range 15) 53 | -11/Scrapyard | Entered Materials 176 | -10/Materials | Discovered new exit (range 7) 195 | -10/Materials | Identified exit to Mines 195 | -10/Materials | Central database locked down 310 | -10/Materials | Build established: Mutant 314 | -10/Materials | Entered Mines 324 | -10/Mines | Deemed a non-threat by the Exiles lab entrance 325 | -10/Mines | Discovered new exit (range 5) 326 | -10/Mines | Met a Derelict bent on vengeance 408 | -10/Mines | Assembled infested the area 414 | -10/Mines | Learned location of 1 exit from Materials 429 | -10/Mines | Assisted by bots powering up and referring to "LRC-V3" 464 | -10/Mines | Core integrity fell below 50% 492 | -10/Mines | Lost 6 parts (1p3n2w) 493 | -10/Mines | Core integrity fell below 20% 494 | -10/Mines | Destroyed by D-53 Grenadier with Mini Grenade Launcher Last Messages --------------- 00465_ U-05 Engineer builds a Wall. 00466_ K-01 Serf collects debris. 00467_ The unstable cave ceiling collapses. 00469_ U-05 Engineer builds a Wall. 00469_ U-05 Engineer destroyed. 00469_ K-01 Serf collects debris. 00472_ The unstable cave ceiling collapses. 00473_ K-01 Serf collects debris. 00474_ The unstable cave ceiling collapses. 00476_ K-01 Serf collects debris. 00480_ The unstable cave ceiling collapses. 00480_ K-01 Serf collects debris. 00481_ The unstable cave ceiling collapses. 00482_ D-53 Grenadier destroyed. 00483_ The unstable cave ceiling collapses. 00485_ K-01 Serf collects debris. 00487_ The unstable cave ceiling collapses. 00488_ K-01 Serf collects debris. 00489_ The unstable cave ceiling collapses. 00492_ K-01 Serf collects debris. Map ----- +----------------------------------------------------+ | ????????????????????## ##????????????????? | | ???????????????????## #????????????????? | | ???????????????????# ## #???????????????? | | ???????????????????# #### ##???????????????? | | ???????????????????# #####??####????????????????? | | ???????????????????# #########??????????????????? | | ???????????????????# #??? ?????????????? | | ???????????????????# #??? #?????????????? | | ?????????????############ ## #??? #?????????????? | | ?#????######## #??# ## ### #?????????????? | | ?#<##?# #??# ## # #?????????????? | | ?# ## ###### #### #### # #?????????????? | | ???# #????# #??# # #?????????????? | | ???### ##????# ######??# # ##????????????? | | ?????###?????# #???????# #????????????? | | ?????????????#########???????# #????????????? | | ?????????????????????????????# ###???????????? | | ?????????????????????????????# #= # #???????????? | | ????????????????????????????## # #???????????? | | ??????????????#########?????# #???????????? | | ??????????????# ####### ###???????????? | | ??????????????# # ## ######???????? | | ??????????????# #????? | | ??????????????# #????? | | ???????????#### # ##### #????? | | ???????##### @ % ##???????????? | | ???????# ## ####????????????? | | ???????# !%! # ##???????????????? | | ???????# ! # d #????????????????? | | ???????##### # # rk #????????????????? | | ???????????# # #### #???????????????? | | ???????????# #??? # # #??????????????? | | ???????????# # #??? ? #?????????????? | | ???????????##### # ## ?? ? ????????????? | | ???????????????###########?? ? ##???????????? | | ???????????????????????????? # ?#????????????? | | ????????????????????????????##?? ?????????????? | | ????????????????????????????????? ??????????????? | | ?????????????????????????????????????????????????? | | ?????????????????????????????????????????????????? | | ?????????????????????????????????????????????????? | | ?????????????????????????????????????????????????? | | ?????????????????????????????????????????????????? | | ?????????????????????????????????????????????????? | | ?????????????????????????????????????????????????? | | ?????????????????????????????????????????????????? | | ?????????????????????????????????????????????????? | | ?????????????????????????????????????????????????? | | ?????????????????????????????????????????????????? | | ?????????????????????????????????????????????????? | +----------------------------------------------------+ Best States ------------- Heat Dissipation 25 Energy Generation 10 Energy Capacity 125 Matter Stores 300 Matter Capacity 300 Sight Range 16 Terrain Scan Density 10 Evasion (%) 42 Item Schematics ----------------- Hcp. Storage Unit | -10/Materials | Hacked Robot Schematics ------------------ None Fabricated ------------ Nothing Alien Tech Used ----------------- None Achievements -------------- None Challenges ------------ None Game ------ Seed RelayFireMatter Manual? 0 Play Time 00:09:51 Cumulative 170.9 hours Start 2019.10.27 @ 20:26:35 End 2019.10.27 @ 20:34:49 Sessions 1 Manual Loads 0 Difficulty Rogue Special Mode None Game No. 97 Rogue 97 Adventurer 0 Explorer 0 Win Type - Total 7 Types 5/0/1/1/0/0/0 Lore% 60 Gallery% 78 Achievement% 61 Wizard Run 0 Options --------- ASCII 0 Keyboard 0 Movement Mouse Keybinds 0 Fullscreen 1 Font 18/X11 Map View 76x50 Tactical HUD 1 Map Filters NONE Filters NONE Steam 1 RUN: ddb7e947-2a47-4ebd-86b9-bb29576701e0